Workbook

Sheet Explication grandeurs à rentrer
B14: Largeur | C14: Largeur du canal | E14: m
B15: Hauteur | C15: Hauteur d’eau dans le canal | E15: m
B16: hgrille | C16: Hauteur de la grille | E16: m
B17: hc | C17: hauteur de la surface colmatée | E17: m
B18: hmasque | C18: Hauteur masquée de la grille | E18: m
B19: β | C19: Angle d’inclinaison de la grille | E19: °
B21: vitesse (v1) | C21: vitesse débitante dans le canal | D21: V1 = Q/(Largeur*Hauteur) | E21: m,s-1
B22: vitesse (vturb) | C22: Vitesse turbinée (grille) | D22: Vturb = Qturb/(largeur*hgrille) | E22: m,s-1
B24: ob | C24: Obstruction des barreaux | E24: -
B25: Kf | C25: Coefficient de forme des barreaux | E25: -
B27: Dent | C27: Diamètre des entretoises | E27: m
B28: Kent | C28: Coefficient de forme des entretoises | E28: -
B29: Nent | C29: Nombre d’entretoises | E29: -
B31: Dsupport | C31: Diamètre des supports | E31: m
B32: Ksupport | C32: Coefficient de forme des supports | E32: -
B33: Nsupport | C33: Nombre de supports | E33: -
B35: oc | C35: obstruction du colmatage | E35: -
B36: oc1 | C36: Obstruction du colmatage supérieur
B37: oc2 | C37: obstruction du colmatage inférieur
B38: Pour un colmatage homogène oc1=oc2 et Tc=100 %
B40: Tc | C40: Taux de surface colmaté | E40: -
C41: sans masque | D41: Tc=hc/hgrille
C42: avec masque | D42: Tc=hc/Hauteur
B44: Tm | C44: Taux de surface masquée | D44: Tm=hmasque/Hauteur | E44: -
B46: Δhautres | C46: perte de charge des autres éléments | E46: m

Sheet sans masque de haut de grille
B3: Approche sans masque de haut de grille avec un colmatage homogène ou non
B33: Informations à fournir
C35: Prise d’eau | G35: Barreaux | K35: Entretoises | O35: supports
C36: Largeur | D36: 7 | E36: m | G36: ob | H36: 29 | I36: % | K36: Dent | L36: 0.03 | M36: m | O36: Dsupport | P36: 0.1 | Q36: m
C37: hgrille | D37: 2 | E37: m | G37: β | H37: 26 | I37: ° | K37: Nent | L37: 10 | M37: - | O37: Nsupport | P37: 3 | Q37: -
C38: vitese (vturb) | D38: 0.6 | E38: m.s-1 | G38: KF | H38: 3.85 | I38: - | K38: Kent | L38: 1.79 | M38: - | O38: Ksupport | P38: =IF(Q40="Oui",P40,P41) -> 2.66487271 | Q38: - | T38: Oui
T39: Non
I40: Colmatage | O40: Support classique | P40: =2.665*COS(RADIANS(H37-26.56)) -> 2.66487271 | Q40: Oui
I41: oc1 | J41: 50 | K41: % | O41: Support optimisé | P41: 0.5
I42: oc2 | J42: 0 | K42: % | L42: Oc2 = 0 si colmatage homogène ou colmatage due en haut de grille
I43: Tc | J43: 100 | K43: % | L43: Tc = 100 % si colmatage homogène
B47: Calcul de la perte de charge
C49: Grille propre | K49: Grille colmatée
D51: Constantes intermédaires | L51: Constantes intermédaires
D52: Oent | E52: =(1-H36/100)*(L37*L36)/D37 -> 0.1065 | F52: - | G52: =E52 -> 0.1065 | L52: otot,bas | M52: =H36/100+(1-H36/100)*J42/100 -> 0.29 | N52: - | O52: =M52 -> 0.29
D53: Osp | E53: =(1-H36/100)*(P37*P36)/P38 -> 0.07992877078 | F53: - | G53: =E53 -> 0.07992877078
L54: ξ1 | M54: =H57+4.7*(100/(100-H36))^2*(J41/(100-J41))*(SIN(RADIANS(H37)))^2 -> 2.714634117 | N54: - | O54: Si oc1=100 % c’est normal que cela marque DIV/0
L55: ξ2 | M55: =H57+4.7*(100/(100-H36))^2*(J42/(100-J42))*(SIN(RADIANS(H37)))^2 -> 0.9229349837 | N55: - | O55: pareil si oc2 = 100 %
E56: barreaux | F56: entretoises | G56: supports | H56: xipropre | L56: ξCd | M56: =3.04*(1-M52)*(J43/100)^1.23*(J41/100)^1.54*(1+(COS(RADIANS(H37)))^2) -> 1.341848562 | N56: -
D57: ξpropre (-) | E57: =H38*(H36/(100-H36))^1.65*(SIN(RADIANS(H37)))^2 -> 0.1688593347 | F57: =L38*(E52/(1-E52))^0.77 -> 0.3479921283 | G57: =P38*(E53/(1-E53))^0.77 -> 0.4060835207 | H57: =E57+F57+G57 -> 0.9229349837
D58: Part [%] | E58: =E57/H57 -> 0.1829590791 | F58: =F57/H57 -> 0.3770494504 | G58: =G57/H57 -> 0.4399914706 | H58: =G58+F58+E58 -> 1 | L58: ξgrille | M58: =IF( AND(J41<>100,J42 <> 100),(1/((J43/100)/SQRT(M54)+(1-J43/100)/SQRT(M55+M56)))^2,IF(J41<>100,(1/((J43/100)/SQRT(M54)))^2,(1/((1-J43/100)/SQRT(M55+M56)))^2)) -> 2.714634117 | N58: -
L59: Δh | M59: =M58*D38^2/(2*9.81) -> 0.04980980031 | N59: m | O59: =M59*1000 -> 49.80980031 | P59: mm
B64: Bonus : calcul de la perte de charge de la prise d’eau
H66: Δhautres | I66: 0 | J66: m | K66: !! grandeur à rentrer
H68: Δhtot | I68: =M59+I66 -> 0.04980980031 | J68: m | K68: =I68*1000 -> 49.80980031 | L68: mm
B72: Résumé des résultats
G74: ξgrille | I74: =M58 -> 2.714634117 | K74: -
G75: ξtot | I75: =IF(I66<>0,2*9.81*G78/D38^2,"Il manque une info") -> Il manque une info | K75: -
E77: Δhgrille | G77: =M59 -> 0.04980980031 | I77: m | K77: =O59 -> 49.80980031 | M77: mm
E78: Δhtot | G78: =IF(I66<>0,I68,"il manque une info") -> il manque une info | I78: m | K78: =IF(I66<>0,K68,"Il manque une info") -> Il manque une info | M78: mm

Sheet avec masque de haut de grille
B3: Approche sans masque de haut de grille avec un colmatage homogène ou non
B33: Informations à fournir
C35: Prise d’eau | G35: Barreaux | K35: Entretoises | O35: supports
C36: Largeur | D36: 7 | E36: m | G36: ob | H36: 29 | I36: % | K36: Dent | L36: 0.03 | M36: m | O36: Dsupport | P36: 0.1 | Q36: m
C37: Hauteur | D37: 2 | E37: m | G37: β | H37: 26 | I37: ° | K37: Nent | L37: 10 | M37: - | O37: Nsupport | P37: 3 | Q37: -
C38: vitese (v1) | D38: 0.6 | E38: m.s-1 | G38: KF | H38: 3.85 | I38: - | K38: Kent | L38: 1.79 | M38: - | O38: Ksupport | P38: =IF(Q40="Oui",P40,P41) -> 2.66487271 | Q38: -
I40: Colmatage | O40: Support classique | P40: =2.665*COS(RADIANS(H37-26.56)) -> 2.66487271 | Q40: Oui | T40: Oui
I41: oc | J41: 50 | K41: % | O41: Support optimisé | P41: 0.5 | T41: Non
I42: Tc | J42: 85 | K42: %
I43: Tm | J43: 15 | K43: %
B47: Calcul de la perte de charge
C49: Grille propre | K49: Grille colmatée
D51: Constantes intermédaires | L51: Constantes intermédaires
D52: Oent | E52: =(1-H36/100)*(L37*L36)/D37 -> 0.1065 | F52: - | G52: =E52*100 -> 10.65 | H52: % | L52: otot,colm | M52: =H36/100+(1-H36/100)*J41/100 -> 0.645 | N52: - | O52: =M52 -> 0.645 | P52: %
D53: Osp | E53: =(1-H36/100)*(P37*P36)/P38 -> 0.07992877078 | F53: - | G53: =E53*100 -> 7.992877078 | H53: %
L54: ξ1 | M54: =H57+4.7*(100/(100-H36))^2*(J41/(100-J41))*(SIN(RADIANS(H37)))^2 -> 2.714634117 | N54: -
L55: ξ2 | M55: =H57 -> 0.9229349837 | N55: -
E56: barreaux | F56: entretoises | G56: supports | H56: xipropre | L56: ξCd1 | M56: =3.04*(1-M52)*(J43/100)^1.2*(1+(COS(RADIANS(H37)))^2) -> 0.2002484733 | N56: -
D57: ξpropre (-) | E57: =H38*(H36/(100-H36))^1.65*(SIN(RADIANS(H37)))^2 -> 0.1688593347 | F57: =L38*(E52/(1-E52))^0.77 -> 0.3479921283 | G57: =P38*(E53/(1-E53))^0.77 -> 0.4060835207 | H57: =E57+F57+G57 -> 0.9229349837 | L57: ξCd2 | M57: =3.04*(1-H36/100)*((J42/100)^1.2*(J41/100)^1.54+1.7*(J43/100)^1.2)*(1+(COS(RADIANS(H37)))^2) -> 1.784939232 | N57: -
D58: Part [%] | E58: =E57/$H$57 -> 0.1829590791 | F58: =F57/$H$57 -> 0.3770494504 | G58: 0.4399914706 | H58: =G58+F58+E58 -> 1
L59: ξgrille | M59: =(1/((J42/100)/SQRT(M54+M56)+(1-J42/100-J43/100)/SQRT(M55+M57)))^2 -> 4.034439571 | N59: -
L60: Δh | M60: =M59*D38^2/(2*9.81) -> 0.07402641415 | N60: m | O60: =M60*1000 -> 74.02641415 | P60: mm
B65: Bonus : calcul de la perte de charge de la prise d’eau
H67: Δhautres | I67: 0 | J67: m | K67: !! grandeur à rentrer
H69: Δhtot | I69: =M60+I67 -> 0.07402641415 | J69: m | K69: =I69*1000 -> 74.02641415 | L69: mm
B73: Résumé des résultats
G75: ξgrille | I75: =M59 -> 4.034439571 | K75: -
G76: ξtot | I76: =IF(I67<>0,2*9.81*G79/D40^2,"Il manque une info") -> Il manque une info | K76: -
E78: Δhgrille | G78: =M60 -> 0.07402641415 | I78: m | K78: =O60 -> 74.02641415 | M78: mm
E79: Δhtot | G79: =IF(I67<>0,I69,"il manque une info") -> il manque une info | I79: m | K79: =IF(I67<>0,K69,"Il manque une info") -> Il manque une info | M79: mm
